[Event "NJSK 2021 Meisjes A&B"]
[Site "Almelo, Netherlands"]
[Date "2021.08.02"]
[Round "2.4"]
[White "De Zoeten, Cato"]
[Black "Martinez, Sara"]
[Result "1-0"]
[TimeControl "90min/40moves + 30sec/move"]
[WhiteElo "1881"]
[BlackElo "1528"]

1. e4 {[%clk 01:30:57]} {[%emt 00:00:02]} e6 {[%clk 01:30:56]} {[%emt
00:00:04]} 2. d4 {[%clk 01:31:22]} {[%emt 00:00:05]} d5 {[%clk 01:31:23]}
{[%emt 00:00:04]} 3. Nd2 {[%clk 01:31:46]} {[%emt 00:00:06]} c5 {[%clk
01:31:47]} {[%emt 00:00:05]} 4. exd5 {[%clk 01:32:11]} {[%emt 00:00:04]} exd5
{[%clk 01:32:12]} {[%emt 00:00:06]} 5. Ngf3 {[%clk 01:32:26]} {[%emt 00:00:14]}
Nf6 {[%clk 01:32:30]} {[%emt 00:00:12]} 6. Bb5+ {[%clk 01:31:08]} {[%emt
00:01:47]} Bd7 {[%clk 01:32:52]} {[%emt 00:00:10]} 7. Bxd7+ {[%clk 01:31:33]}
{[%emt 00:00:05]} Nbxd7 {[%clk 01:33:18]} {[%emt 00:00:04]} 8. O-O {[%clk
01:31:37]} {[%emt 00:00:25]} Be7 {[%clk 01:33:32]} {[%emt 00:00:16]} 9. dxc5
{[%clk 01:31:11]} {[%emt 00:00:57]} Nxc5 {[%clk 01:33:51]} {[%emt 00:00:11]} 10.
Nb3 {[%clk 01:31:35]} {[%emt 00:00:05]} O-O {[%clk 01:32:54]} {[%emt 00:01:27]}
11. Nbd4 {[%clk 01:24:41]} {[%emt 00:07:24]} Nce4 {[%clk 01:29:37]} {[%emt
00:03:47]} 12. c3 {[%clk 01:16:04]} {[%emt 00:09:08]} Qc7 {[%clk 01:19:02]}
{[%emt 00:11:04]} 13. Nf5 {[%clk 01:08:51]} {[%emt 00:07:43]} Bd6 {[%clk
01:05:59]} {[%emt 00:13:34]} 14. Nxd6 {[%clk 01:04:54]} {[%emt 00:04:25]} Qxd6
{[%clk 01:06:13]} {[%emt 00:00:17]} 15. Be3 {[%clk 01:04:03]} {[%emt 00:01:21]}
Ng4 {[%clk 00:55:51]} {[%emt 00:10:52]} 16. Re1 {[%clk 00:50:58]} {[%emt
00:13:35]} Rfe8 {[%clk 00:48:39]} {[%emt 00:07:43]} 17. Qd4 {[%clk 00:39:44]}
{[%emt 00:11:43]} f5 {[%clk 00:41:30]} {[%emt 00:07:39]} 18. h3 {[%clk
00:35:20]} {[%emt 00:04:54]} Nxe3 {[%clk 00:41:03]} {[%emt 00:00:57]} 19. Rxe3
{[%clk 00:35:34]} {[%emt 00:00:16]} b6 {[%clk 00:37:54]} {[%emt 00:03:39]} 20.
Rd1 {[%clk 00:30:10]} {[%emt 00:05:53]} Rad8 {[%clk 00:33:54]} {[%emt
00:04:30]} 21. c4 {[%clk 00:28:15]} {[%emt 00:02:25]} Nf6 {[%clk 00:23:25]}
{[%emt 00:11:00]} 22. Rxe8+ {[%clk 00:18:01]} {[%emt 00:10:43]} Rxe8 {[%clk
00:23:43]} {[%emt 00:00:13]} 23. cxd5 {[%clk 00:17:49]} {[%emt 00:00:42]} Rd8
{[%clk 00:22:16]} {[%emt 00:01:57]} 24. Qc4 {[%clk 00:16:16]} {[%emt 00:02:03]}
Kf8 {[%clk 00:21:01]} {[%emt 00:01:45]} 25. Nd4 {[%clk 00:15:16]} {[%emt
00:01:30]} Nxd5 {[%clk 00:11:43]} {[%emt 00:09:48]} 26. Nxf5 {[%clk 00:14:53]}
{[%emt 00:00:53]} Qd7 {[%clk 00:11:38]} {[%emt 00:00:35]} 27. Ne3 {[%clk
00:13:06]} {[%emt 00:02:17]} Nxe3 {[%clk 00:08:49]} {[%emt 00:03:19]} 28. Qf4+
{[%clk 00:12:54]} {[%emt 00:00:41]} Qf5 {[%clk 00:08:43]} {[%emt 00:00:37]} 29.
Rxd8+ {[%clk 00:13:15]} {[%emt 00:00:09]} Ke7 {[%clk 00:08:55]} {[%emt
00:00:17]} 30. Qc7+ {[%clk 00:13:18]} {[%emt 00:00:27]} Kf6 {[%clk 00:09:02]}
{[%emt 00:00:24]} 31. Rf8+ {[%clk 00:13:36]} {[%emt 00:00:11]} 1-0

[Event "NJSK 2021 Meisjes A&B"]
[Site "Almelo, Netherlands"]
[Date "2021.08.02"]
[Round "2.5"]
[White "Bertholee, Arjuna"]
[Black "Van Essen, Marieke"]
[Result "1/2-1/2"]
[TimeControl "90min/40moves + 30sec/move"]
[WhiteElo "1144"]
[BlackElo "1610"]

1. e4 {[%clk 01:30:56]} {[%emt 00:00:02]} e5 {[%clk 01:30:57]} {[%emt
00:00:03]} 2. Nf3 {[%clk 01:31:16]} {[%emt 00:00:11]} Nc6 {[%clk 01:31:22]}
{[%emt 00:00:05]} 3. Nc3 {[%clk 01:31:41]} {[%emt 00:00:05]} Nf6 {[%clk
01:31:42]} {[%emt 00:00:09]} 4. Bb5 {[%clk 01:31:49]} {[%emt 00:00:22]} d6
{[%clk 01:30:33]} {[%emt 00:01:39]} 5. d4 {[%clk 01:31:29]} {[%emt 00:00:50]}
exd4 {[%clk 01:30:21]} {[%emt 00:00:42]} 6. Nxd4 {[%clk 01:30:12]} {[%emt
00:01:47]} Bd7 {[%clk 01:30:35]} {[%emt 00:00:16]} 7. Nxc6 {[%clk 01:29:21]}
{[%emt 00:01:21]} Bxc6 {[%clk 01:30:27]} {[%emt 00:00:38]} 8. Bxc6+ {[%clk
01:29:26]} {[%emt 00:00:25]} bxc6 {[%clk 01:30:48]} {[%emt 00:00:09]} 9. O-O
{[%clk 01:26:21]} {[%emt 00:03:34]} Be7 {[%clk 01:29:02]} {[%emt 00:02:17]} 10.
b3 {[%clk 01:18:23]} {[%emt 00:08:28]} O-O {[%clk 01:26:34]} {[%emt 00:02:57]}
11. Ba3 {[%clk 01:06:43]} {[%emt 00:12:12]} d5 {[%clk 01:20:36]} {[%emt
00:06:28]} 12. Bxe7 {[%clk 01:04:05]} {[%emt 00:03:08]} Qxe7 {[%clk 01:20:58]}
{[%emt 00:00:07]} 13. exd5 {[%clk 01:03:32]} {[%emt 00:01:02]} Rad8 {[%clk
01:19:29]} {[%emt 00:01:59]} 14. Qe1 {[%clk 00:55:52]} {[%emt 00:08:11]} Qc5
{[%clk 01:15:14]} {[%emt 00:04:45]} 15. Ne4 {[%clk 00:50:33]} {[%emt 00:05:50]}
Nxe4 {[%clk 01:13:19]} {[%emt 00:02:24]} 16. Qxe4 {[%clk 00:49:02]} {[%emt
00:02:01]} Rfe8 {[%clk 01:12:06]} {[%emt 00:01:43]} 17. Qc4 {[%clk 00:42:15]}
{[%emt 00:07:17]} Qxd5 {[%clk 01:08:18]} {[%emt 00:04:17]} 18. Qxd5 {[%clk
00:42:12]} {[%emt 00:00:34]} cxd5 {[%clk 01:05:35]} {[%emt 00:03:13]} 19. Rfe1
{[%clk 00:38:19]} {[%emt 00:04:23]} Re6 {[%clk 01:00:24]} {[%emt 00:05:41]} 20.
Kf1 {[%clk 00:33:42]} {[%emt 00:05:07]} Kf8 {[%clk 00:59:06]} {[%emt 00:01:48]}
21. Rad1 {[%clk 00:31:02]} {[%emt 00:03:10]} c5 {[%clk 00:54:55]} {[%emt
00:04:41]} 22. Re2 {[%clk 00:25:17]} {[%emt 00:06:14]} Ke7 {[%clk 00:50:44]}
{[%emt 00:04:41]} 23. Red2 {[%clk 00:23:11]} {[%emt 00:02:37]} Re5 {[%clk
00:48:15]} {[%emt 00:02:59]} 24. f4 {[%clk 00:19:58]} {[%emt 00:03:43]} Rf5
{[%clk 00:47:40]} {[%emt 00:01:04]} 25. g3 {[%clk 00:19:14]} {[%emt 00:01:14]}
h5 {[%clk 00:43:09]} {[%emt 00:05:01]} 26. a3 {[%clk 00:16:03]} {[%emt
00:03:42]} Ke6 {[%clk 00:35:10]} {[%emt 00:08:29]} 27. Ke2 {[%clk 00:14:26]}
{[%emt 00:02:07]} a5 {[%clk 00:30:12]} {[%emt 00:05:27]} 28. Ke3 {[%clk
00:12:36]} {[%emt 00:02:20]} Re8 {[%clk 00:27:00]} {[%emt 00:03:42]} 29. h3
{[%clk 00:10:59]} {[%emt 00:02:08]} Kd6+ {[%clk 00:25:39]} {[%emt 00:01:51]} 30.
Kf3 {[%clk 00:11:14]} {[%emt 00:00:14]} g5 {[%clk 00:23:45]} {[%emt 00:02:24]}
31. c4 {[%clk 00:09:56]} {[%emt 00:01:49]} d4 {[%clk 00:21:29]} {[%emt
00:02:46]} 32. b4 {[%clk 00:09:13]} {[%emt 00:01:14]} Re3+ {[%clk 00:16:09]}
{[%emt 00:05:49]} 33. Kg2 {[%clk 00:08:58]} {[%emt 00:00:44]} axb4 {[%clk
00:15:27]} {[%emt 00:01:13]} 34. axb4 {[%clk 00:08:54]} {[%emt 00:00:34]} gxf4
{[%clk 00:14:17]} {[%emt 00:01:39]} 35. bxc5+ {[%clk 00:08:11]} {[%emt
00:01:13]} Kxc5 {[%clk 00:14:34]} {[%emt 00:00:14]} 36. Rxd4 {[%clk 00:07:23]}
{[%emt 00:01:17]} fxg3 {[%clk 00:13:57]} {[%emt 00:01:08]} 37. Rd5+ {[%clk
00:04:39]} {[%emt 00:03:14]} Rxd5 {[%clk 00:13:22]} {[%emt 00:01:05]} 38. Rxd5+
{[%clk 00:04:53]} {[%emt 00:00:16]} Kxc4 {[%clk 00:12:54]} {[%emt 00:00:58]} 39.
Rxh5 {[%clk 00:05:14]} {[%emt 00:00:08]} Kd4 {[%clk 00:11:32]} {[%emt
00:01:52]} 40. Rf5 {[%clk 00:03:49]} {[%emt 00:01:56]} Re5 {[%clk 00:09:57]}
{[%emt 00:02:05]} 41. Rxf7 {[%clk 00:03:15]} {[%emt 00:01:03]} Rg5 {[%clk
00:07:31]} {[%emt 00:02:56]} 42. Rf3 {[%clk 00:01:49]} {[%emt 00:01:56]} Ke5
{[%clk 00:05:40]} {[%emt 00:02:21]} 43. Rxg3 {[%clk 00:01:37]} {[%emt
00:00:42]} Rxg3+ {[%clk 00:05:55]} {[%emt 00:00:16]} 44. Kxg3 {[%clk 00:01:55]}
{[%emt 00:00:12]} Kf5 {[%clk 00:06:14]} {[%emt 00:00:11]} 45. Kh4 {[%clk
00:00:55]} {[%emt 00:01:29]} Kg6 {[%clk 00:06:34]} {[%emt 00:00:10]} 46. Kg4
{[%clk 00:00:59]} {[%emt 00:00:27]} Kh6 {[%clk 00:06:56]} {[%emt 00:00:09]}
1/2-1/2

[Event "NJSK 2021 Meisjes A&B"]
[Site "Almelo, Netherlands"]
[Date "2021.08.02"]
[Round "2.6"]
[White "Zubair, Javeria Komal"]
[Black "Duson, Stella"]
[Result "1-0"]
[TimeControl "90min/40moves + 30sec/move"]
[WhiteElo "1490"]
[BlackElo "1259"]

1. Nf3 {[%clk 01:30:58]} {[%emt 00:00:01]} d5 {[%clk 01:30:50]} {[%emt
00:00:10]} 2. c4 {[%clk 01:31:24]} {[%emt 00:00:04]} c6 {[%clk 01:31:11]}
{[%emt 00:00:10]} 3. e3 {[%clk 01:31:45]} {[%emt 00:00:09]} Nf6 {[%clk
01:31:25]} {[%emt 00:00:15]} 4. Be2 {[%clk 01:32:06]} {[%emt 00:00:09]} Bf5
{[%clk 01:31:18]} {[%emt 00:00:36]} 5. Nc3 {[%clk 01:31:49]} {[%emt 00:00:47]}
e6 {[%clk 01:31:23]} {[%emt 00:00:25]} 6. a3 {[%clk 01:31:18]} {[%emt
00:01:02]} Nbd7 {[%clk 01:31:33]} {[%emt 00:00:19]} 7. d4 {[%clk 01:29:49]}
{[%emt 00:02:00]} b6 {[%clk 01:28:12]} {[%emt 00:03:52]} 8. b4 {[%clk
01:28:22]} {[%emt 00:01:56]} Be7 {[%clk 01:23:08]} {[%emt 00:05:34]} 9. O-O
{[%clk 01:27:44]} {[%emt 00:01:08]} O-O {[%clk 01:22:41]} {[%emt 00:00:56]} 10.
c5 {[%clk 01:19:40]} {[%emt 00:08:35]} Qb8 {[%clk 01:14:45]} {[%emt 00:08:26]}
11. Nh4 {[%clk 01:13:34]} {[%emt 00:06:35]} Bg6 {[%clk 01:09:25]} {[%emt
00:05:50]} 12. f4 {[%clk 01:10:56]} {[%emt 00:03:09]} Be4 {[%clk 01:05:54]}
{[%emt 00:04:01]} 13. Nf3 {[%clk 01:09:42]} {[%emt 00:01:44]} h6 {[%clk
00:57:41]} {[%emt 00:08:42]} 14. Ne5 {[%clk 00:50:33]} {[%emt 00:19:39]} Qb7
{[%clk 00:45:28]} {[%emt 00:12:43]} 15. b5 {[%clk 00:39:49]} {[%emt 00:11:15]}
cxb5 {[%clk 00:43:34]} {[%emt 00:02:23]} 16. c6 {[%clk 00:35:59]} {[%emt
00:04:21]} Qc8 {[%clk 00:36:50]} {[%emt 00:07:12]} 17. Nxe4 {[%clk 00:35:36]}
{[%emt 00:00:55]} Nxe5 {[%clk 00:34:11]} {[%emt 00:03:08]} 18. Nxf6+ {[%clk
00:35:49]} {[%emt 00:00:18]} Bxf6 {[%clk 00:33:53]} {[%emt 00:00:47]} 19. fxe5
{[%clk 00:35:48]} {[%emt 00:00:31]} Bg5 {[%clk 00:32:49]} {[%emt 00:01:32]} 20.
Bxb5 {[%clk 00:33:24]} {[%emt 00:02:56]} a6 {[%clk 00:31:54]} {[%emt 00:01:25]}
21. Bd3 {[%clk 00:32:41]} {[%emt 00:01:14]} Qxc6 {[%clk 00:31:03]} {[%emt
00:01:20]} 22. Bd2 {[%clk 00:32:33]} {[%emt 00:00:38]} Be7 {[%clk 00:29:23]}
{[%emt 00:02:10]} 23. Qe2 {[%clk 00:29:49]} {[%emt 00:03:14]} b5 {[%clk
00:28:34]} {[%emt 00:01:19]} 24. e4 {[%clk 00:26:54]} {[%emt 00:03:26]} Ra7
{[%clk 00:27:27]} {[%emt 00:01:37]} 25. exd5 {[%clk 00:24:55]} {[%emt
00:02:29]} Qxd5 {[%clk 00:27:37]} {[%emt 00:00:20]} 26. Be4 {[%clk 00:24:31]}
{[%emt 00:00:54]} Qc4 {[%clk 00:25:58]} {[%emt 00:02:07]} 27. Qxc4 {[%clk
00:24:18]} {[%emt 00:00:45]} bxc4 {[%clk 00:23:12]} {[%emt 00:03:16]} 28. Rfc1
{[%clk 00:24:37]} {[%emt 00:00:11]} Rc7 {[%clk 00:23:11]} {[%emt 00:00:30]} 29.
Ba5 {[%clk 00:24:33]} {[%emt 00:00:34]} Rd7 {[%clk 00:21:46]} {[%emt 00:01:55]}
30. Rxc4 {[%clk 00:24:30]} {[%emt 00:00:34]} Bd8 {[%clk 00:21:48]} {[%emt
00:00:27]} 31. Bb4 {[%clk 00:24:38]} {[%emt 00:00:23]} Be7 {[%clk 00:20:43]}
{[%emt 00:01:35]} 32. Bxe7 {[%clk 00:24:20]} {[%emt 00:00:47]} Rxe7 {[%clk
00:21:04]} {[%emt 00:00:09]} 33. Ra4 {[%clk 00:23:47]} {[%emt 00:01:04]} Ra7
{[%clk 00:20:34]} {[%emt 00:01:00]} 34. Bd3 {[%clk 00:24:02]} {[%emt 00:00:15]}
a5 {[%clk 00:19:17]} {[%emt 00:01:47]} 35. Rc1 {[%clk 00:23:44]} {[%emt
00:00:48]} f6 {[%clk 00:18:16]} {[%emt 00:01:30]} 36. exf6 {[%clk 00:22:59]}
{[%emt 00:01:15]} gxf6 {[%clk 00:18:38]} {[%emt 00:00:09]} 37. Rc6 {[%clk
00:23:19]} {[%emt 00:00:11]} e5 {[%clk 00:18:37]} {[%emt 00:00:31]} 38. dxe5
{[%clk 00:23:40]} {[%emt 00:00:08]} fxe5 {[%clk 00:19:03]} {[%emt 00:00:04]} 39.
Rg4+ {[%clk 00:24:00]} {[%emt 00:00:09]} Rg7 {[%clk 00:19:00]} {[%emt
00:00:32]} 40. Bc4+ {[%clk 00:24:21]} {[%emt 00:00:10]} Kh8 {[%clk 00:19:14]}
{[%emt 00:00:16]} 41. Rxh6+ {[%clk 00:24:44]} {[%emt 00:00:07]} Rh7 {[%clk
00:19:24]} {[%emt 00:00:20]} 42. Rhg6 {[%clk 00:24:31]} {[%emt 00:00:43]} Rc7
{[%clk 00:18:26]} {[%emt 00:01:27]} 43. a4 {[%clk 00:24:31]} {[%emt 00:00:32]}
Rb7 {[%clk 00:18:13]} {[%emt 00:00:41]} 44. Bb5 {[%clk 00:24:27]} {[%emt
00:00:35]} Rc7 {[%clk 00:18:17]} {[%emt 00:00:27]} 45. Rh4+ {[%clk 00:24:51]}
{[%emt 00:00:06]} Rh7 {[%clk 00:18:43]} {[%emt 00:00:03]} 46. Rxh7+ {[%clk
00:25:16]} {[%emt 00:00:05]} Kxh7 {[%clk 00:19:03]} {[%emt 00:00:10]} 47. Re6
{[%clk 00:25:45]} {[%emt 00:00:02]} Rd8 {[%clk 00:18:51]} {[%emt 00:00:41]} 48.
Rxe5 {[%clk 00:26:02]} {[%emt 00:00:14]} Kg6 {[%clk 00:19:07]} {[%emt
00:00:13]} 49. h4 {[%clk 00:26:02]} {[%emt 00:00:31]} Kf6 {[%clk 00:19:31]}
{[%emt 00:00:05]} 50. Rc5 {[%clk 00:26:18]} {[%emt 00:00:15]} Ke6 {[%clk
00:19:53]} {[%emt 00:00:08]} 51. Kh2 {[%clk 00:26:15]} {[%emt 00:00:33]} Kd6
{[%clk 00:20:18]} {[%emt 00:00:05]} 52. Rg5 {[%clk 00:26:23]} {[%emt 00:00:22]}
Ke6 {[%clk 00:20:31]} {[%emt 00:00:17]} 53. Kh3 {[%clk 00:26:31]} {[%emt
00:00:22]} Rh8 {[%clk 00:20:43]} {[%emt 00:00:18]} 54. g4 {[%clk 00:26:38]}
{[%emt 00:00:21]} Kf6 {[%clk 00:21:08]} {[%emt 00:00:06]} 55. Rf5+ {[%clk
00:26:55]} {[%emt 00:00:13]} Kg6 {[%clk 00:21:07]} {[%emt 00:00:31]} 56. h5+
{[%clk 00:27:09]} {[%emt 00:00:16]} Kg7 {[%clk 00:21:30]} {[%emt 00:00:07]} 57.
Kh4 {[%clk 00:27:18]} {[%emt 00:00:21]} Rf8 {[%clk 00:21:39]} {[%emt 00:00:22]}
58. h6+ {[%clk 00:26:42]} {[%emt 00:01:06]} Kg8 {[%clk 00:21:57]} {[%emt
00:00:12]} 59. Bc4+ {[%clk 00:26:33]} {[%emt 00:00:38]} Rf7 {[%clk 00:22:01]}
{[%emt 00:00:26]} 60. Bxf7+ {[%clk 00:26:01]} {[%emt 00:01:02]} Kh7 {[%clk
00:22:21]} {[%emt 00:00:09]} 61. Kh5 {[%clk 00:25:35]} {[%emt 00:00:56]} Kh8
{[%clk 00:22:45]} {[%emt 00:00:07]} 62. Re5 {[%clk 00:25:20]} {[%emt 00:00:45]}
Kh7 {[%clk 00:23:04]} {[%emt 00:00:11]} 63. Bg6+ {[%clk 00:25:46]} {[%emt
00:00:05]} Kh8 {[%clk 00:23:34]} {[%emt 00:00:01]} 64. Re8# {[%clk 00:26:07]}
{[%emt 00:00:08]} 1-0